bitfinex/quotes_ETHUSD_20251118
["timestamp","ask_amount","ask_price","bid_price","bid_amount"]
[1763455249871,2.642,3070.5,3069.8,0.6766]
[1763455250021,2.642,3070.5,3069.8,0.1839]
[1763455250022,0.29,3070.5,3069.8,0.1839]
[1763455251229,0.29,3070.5,3069.8,0.6766]
[1763455251639,0.90699264,3071.5,3069.8,0.6766]
[1763455251640,0.29,3070.4,3069.9,0.52527435]
[1763455252022,0.1844,3071.5,3069.9,0.4927]
[1763455252226,0.002,3070.5,3069.9,0.4927]
[1763455252445,0.29,3070.4,3069.9,0.4927]
[1763455253645,0.29,3070.4,3069.8,0.1839]
[1763455256257,0.002,3070.5,3069.9,0.4927]
[1763455256456,0.289,3070.4,3070.0,0.03257328]
[1763455256996,0.29,3070.3,3070.1,0.4927]
[1763455257195,0.29,3070.3,3070.2,0.03257116]
[1763455257401,0.29,3070.3,3070.2,1.2067831]
[1763455257551,0.29,3070.3,3070.2,0.52527116]
[1763455257751,0.29,3070.3,3070.2,0.4927]
[1763455258156,0.29,3070.3,3070.2,1.17517977]
[1763455258584,0.29,3070.3,3069.8,0.6766]
[1763455258798,0.29,3070.3,3069.9,1.17536535]
[1763455259111,0.29,3070.3,3069.8,0.1839]
[1763455259112,1.176,3070.2,3069.8,0.1839]
[1763455259259,0.29,3070.3,3069.4,0.4927]
[1763455259462,0.29,3070.3,3069.5,0.68401366]
[1763455259658,0.29,3070.3,3069.0,0.6766]
[1763455259891,0.29,3070.3,3069.1,0.68427987]
[1763455260157,0.4556,3070.5,3069.2,0.68427987]
[1763455260357,0.4556,3070.5,3069.3,1.17697987]
[1763455260558,0.002,3070.5,3069.4,0.68468705]
[1763455260804,0.002,3070.5,3070.4,0.1839]
[1763455261114,0.002,3070.9,3070.4,9.47322457]
[1763455261319,0.002,3070.9,3070.8,0.85347167]
[1763455261521,0.002,3070.9,3070.8,0.68395362]
[1763455262420,0.291,3070.9,3070.3,0.4927]
[1763455262822,0.289,3070.8,3069.9,0.1839]
[1763455263025,0.7426,3070.8,3069.4,0.85347167]
[1763455263246,0.7426,3070.8,3069.5,0.68345835]
[1763455263387,0.289,3070.8,3069.6,0.71603588]
[1763455263592,0.289,3070.8,3069.6,0.03257753]
[1763455263834,0.289,3070.7,3069.7,0.68345146]
[1763455264012,0.289,3070.7,3069.6,0.52527753]
[1763455264214,0.64,3070.9,3069.8,0.03257541]
[1763455264441,0.289,3070.8,3069.6,0.4927]
[1763455264605,0.289,3070.8,3069.7,1.17616245]
[1763455264809,0.289,3070.8,3069.8,0.68346245]
[1763455265006,0.002,3070.9,3069.9,0.7160368]
[1763455265260,0.002,3070.9,3070.0,0.68346245]
[1763455265261,0.289,3070.8,3070.0,0.68346245]
[1763455265458,0.289,3070.8,3069.4,1.13897642]
[1763455265459,0.289,3070.7,3070.1,1.35998046]
[1763455265670,0.289,3070.7,3070.1,0.6766]
[1763455266059,0.289,3070.7,3070.1,0.1839]
[1763455266256,0.289,3070.7,3069.5,0.4683]
[1763455266465,0.289,3070.7,3069.4,0.85347167]
[1763455266466,0.289,3070.7,3069.6,1.15217302]
[1763455266776,0.289,3070.6,3069.7,1.15217302]
[1763455266936,0.289,3070.6,3069.8,0.68387302]
[1763455267137,0.289,3070.6,3069.7,0.4683]
[1763455267325,0.289,3070.6,3069.8,1.15243863]
[1763455267525,0.289,3070.6,3069.8,0.4683]
[1763455267776,0.289,3070.6,3069.3,1.32177167]
[1763455267982,0.1974,3070.9,3069.4,0.68425456]
[1763455268296,0.1974,3070.9,3069.5,0.68425456]
[1763455268297,0.289,3070.5,3069.5,0.68425456]
[1763455268435,0.289,3070.5,3069.0,1.90450972]
[1763455268436,0.289,3070.5,3069.0,0.1839]
[1763455268636,0.4884,3070.4,3069.1,0.68494663]
[1763455268836,0.4884,3070.4,3069.0,0.1839]
[1763455269038,1.176,3070.3,3069.1,0.6847376]
[1763455269293,1.6644,3070.2,3069.0,0.1839]
[1763455269549,1.6644,3070.2,3066.1,0.31095326]
[1763455269550,0.1954,3069.1,3068.2,1.32177167]
[1763455269787,0.289,3069.0,3068.4,0.03259027]
[1763455270085,0.289,3069.0,3068.2,0.73276481]
[1763455270263,0.289,3069.0,3068.3,0.68552661]
[1763455270451,0.289,3069.0,3068.2,0.73276481]
[1763455270651,0.289,3069.0,3067.9,0.85347167]
[1763455270879,0.289,3068.9,3068.2,0.68557199]
[1763455271034,0.1954,3069.4,3068.3,0.03259133]
[1763455271238,0.1954,3069.4,3068.4,0.68570761]
[1763455271239,0.289,3069.3,3068.4,0.68570761]
[1763455271449,0.289,3069.2,3068.5,0.68558144]
[1763455271653,0.1954,3069.7,3068.6,0.68568068]
[1763455271875,0.289,3069.6,3068.7,1.57173943]
[1763455272048,0.6838,3070.2,3068.8,0.68568068]
[1763455272252,0.289,3070.1,3068.9,1.53915235]
[1763455272488,0.289,3070.0,3069.0,1.77574009]
[1763455272695,0.289,3070.0,3069.1,0.68568068]
[1763455272855,0.289,3070.0,3069.2,0.71826246]
[1763455273054,0.289,3070.0,3069.3,0.68568068]
[1763455273254,0.289,3069.9,3069.4,0.71826033]
[1763455273460,0.289,3069.9,3069.1,0.1883]
[1763455273785,0.289,3069.9,3069.2,0.68547708]
[1763455273953,0.289,3069.9,3069.1,0.1883]
[1763455274152,0.4844,3069.9,3069.1,0.1883]
[1763455274350,0.1974,3070.9,3069.2,0.4683]
[1763455274351,0.4884,3070.6,3069.2,0.4683]
[1763455274596,0.289,3070.5,3069.3,0.68560769]
[1763455274742,0.289,3070.5,3069.4,0.88634563]
[1763455274948,0.289,3070.5,3069.5,0.71818628]
[1763455275146,0.289,3070.5,3069.6,0.68560769]
[1763455275362,0.1954,3069.5,3068.3,0.4683]
[1763455275594,0.289,3069.4,3068.4,0.71941683]
[1763455275739,0.289,3069.4,3068.5,0.68682656]
[1763455275939,0.289,3069.4,3068.4,0.03259027]
[1763455276190,0.289,3069.4,3068.5,0.68676142]
[1763455276391,0.289,3069.4,3068.6,0.03258815]
[1763455276910,0.289,3069.4,3068.3,0.4683]
[1763455277097,0.7774,3069.4,3068.3,0.4683]
[1763455277592,0.7774,3069.4,3068.4,0.03259027]
[1763455277787,0.289,3069.4,3068.4,0.03259027]
[1763455278408,0.289,3069.4,3068.3,0.4683]
[1763455278708,0.289,3069.4,3068.4,0.03259027]
[1763455278858,0.289,3069.4,3068.3,0.4683]
[1763455279065,2.352,3069.3,3068.3,0.4683]
[1763455279412,2.352,3069.3,3068.4,0.03259027]
[1763455279969,2.352,3069.3,3068.5,0.4592]
[1763455280768,2.352,3069.3,3068.6,0.03258815]
[1763455281515,3.74999264,3069.3,3068.6,0.03258815]
[1763455281801,2.352,3069.3,3068.7,0.03258708]
[1763455282001,2.352,3069.3,3068.2,0.4592]
[1763455282205,0.491,3069.2,3068.1,0.1839]
[1763455282512,2.352,3069.3,3068.2,0.49179239]
[1763455282870,2.843,3069.3,3068.2,0.49179239]
[1763455283785,2.352,3069.3,3068.2,0.03259239]
[1763455284192,0.491,3069.2,3068.1,0.1839]
[1763455284390,1.39799264,3069.2,3068.2,0.03259239]
[1763455284817,0.491,3069.2,3068.3,0.03259133]
[1763455285672,2.352,3069.3,3068.4,0.4592]
[1763455286482,0.491,3069.7,3068.5,0.03258921]
[1763455286483,1.176,3069.2,3068.5,0.03258921]
[1763455286704,0.288,3069.1,3068.4,0.4592]
[1763455287110,2.352,3069.2,3068.6,0.405504]
[1763455287321,0.288,3069.1,3068.8,0.405504]
[1763455287483,0.288,3069.1,3068.9,0.03258496]
[1763455287674,0.288,3069.1,3069.0,0.1807]
[1763455287876,0.288,3069.1,3069.0,0.6399]
[1763455289907,0.288,3069.1,3069.0,1.135]
[1763455290479,0.491,3071.2,3069.1,0.405504]
[1763455290685,1.176,3070.8,3069.2,0.98182617]
[1763455290885,1.176,3070.8,3069.3,0.68603963]
[1763455291111,0.491,3070.7,3069.4,0.4592]
[1763455291410,1.176,3070.8,3069.4,0.4592]
[1763455291411,1.667,3070.8,3069.4,0.4592]
[1763455291792,0.288,3070.7,3069.4,0.4592]
[1763455293802,0.288,3070.7,3069.5,0.6863161]
[1763455293996,0.288,3070.7,3069.6,0.4592]
[1763455295184,0.4763,3069.7,3069.0,1.03417167]
[1763455295410,0.287,3069.6,3069.0,0.1807]
[1763455295843,0.287,3069.6,3068.6,0.4592]
[1763455296015,0.7865,3069.6,3068.1,0.1839]
[1763455296215,0.7865,3069.6,3068.2,0.7190988]
[1763455296428,0.7865,3069.6,3068.2,0.4849]
[1763455296737,0.4995,3069.5,3068.3,0.03259133]
[1763455298147,0.287,3069.6,3068.4,0.4849]
[1763455298622,0.287,3069.6,3068.4,0.51749027]
[1763455299210,2.352,3069.5,3068.4,0.4849]
[1763455300532,2.8515,3069.5,3068.4,0.4849]
[1763455300933,2.8515,3069.5,3068.5,0.03258921]
[1763455301256,2.8515,3069.5,3068.4,0.4849]
[1763455301420,2.352,3069.5,3068.4,0.4849]
[1763455302125,0.4995,3069.4,3068.1,0.1839]
[1763455302474,0.4995,3069.4,3068.2,0.4849]
[1763455302985,2.352,3069.5,3068.1,0.1839]
[1763455303140,0.4995,3069.3,3068.1,0.1839]
[1763455303347,0.4995,3069.3,3068.1,0.6688]
[1763455303862,0.4995,3069.2,3068.0,0.001]
[1763455304782,0.405504,3069.1,3068.0,0.001]
[1763455305085,0.4892,3068.1,3068.0,0.001]
[1763455305237,0.7762,3068.1,3068.0,0.001]
[1763455305455,1.2757,3068.1,3068.0,0.001]
[1763455306812,0.287,3068.1,3068.0,0.001]
[1763455308210,0.4995,3068.5,3068.0,0.001]
[1763455308375,0.287,3068.4,3068.0,0.001]
[1763455308699,0.4995,3068.9,3068.0,0.001]
[1763455308700,0.287,3068.3,3068.0,0.001]
[1763455309213,2.354,3068.2,3068.0,0.001]
[1763455309562,2.354,3068.2,3068.1,1.1616]
[1763455310302,2.354,3068.2,3068.0,0.001]
[1763455313414,1.177,3068.2,3068.0,0.001]
[1763455314189,0.287,3068.3,3068.0,0.001]
[1763455314398,0.4892,3068.1,3068.0,0.001]
[1763455314603,0.7865,3068.3,3068.0,0.001]
[1763455314826,0.4995,3068.2,3068.0,0.001]
[1763455314998,0.4892,3068.1,3068.0,0.001]
[1763455316120,0.287,3068.3,3068.0,0.001]
[1763455316321,0.4892,3068.1,3068.0,0.001]
[1763455316888,0.9887,3068.1,3068.0,0.001]
[1763455319206,3.3427,3068.1,3068.0,0.001]
[1763455319385,2.1657,3068.1,3068.0,0.001]
[1763455319837,0.4892,3068.1,3068.0,0.001]
[1763455319999,0.7752,3068.1,3068.0,0.001]
[1763455320208,0.4995,3068.5,3068.0,0.001]
[1763455320516,0.287,3068.4,3068.0,0.001]
[1763455321021,0.287,3068.4,3068.1,0.1915]
[1763455321396,0.287,3068.4,3068.3,0.4852]
[1763455321721,0.287,3068.4,3068.1,0.1915]
[1763455321924,0.287,3068.4,3068.0,0.001]
[1763455322630,0.287,3068.4,3068.1,0.4849]
[1763455322835,0.0637,3069.7,3068.3,0.4852]
[1763455322995,0.002,3070.5,3068.4,0.4849]
[1763455322996,0.1839,3069.9,3068.4,0.4849]
[1763455323196,0.287,3069.8,3068.4,0.4849]
[1763455323395,0.7865,3069.8,3068.4,0.4849]
[1763455323614,0.287,3069.8,3068.5,0.405504]
[1763455324026,0.287,3069.8,3068.4,0.51749027]
[1763455324027,0.7865,3069.8,3068.6,0.4849]
[1763455324529,0.287,3069.8,3068.6,0.4849]
[1763455325242,0.7865,3069.8,3068.6,0.4849]
[1763455325403,0.287,3069.8,3068.6,0.4849]
[1763455325815,0.7865,3069.8,3068.6,0.4849]
[1763455326113,0.7865,3069.8,3068.7,0.03258708]
[1763455326421,0.4679,3069.7,3068.0,0.001]
[1763455326629,8.2344898,3069.0,3068.0,0.001]
[1763455326800,1.31249664,3069.4,3068.0,0.001]
[1763455326801,0.4537,3068.1,3068.0,0.001]
[1763455327132,0.286,3068.1,3068.0,0.001]
[1763455327299,0.7539,3068.1,3068.0,0.001]
[1763455328011,0.4679,3068.1,3068.0,0.001]
[1763455328328,0.286,3068.1,3068.0,0.001]
[1763455328733,0.90699264,3068.9,3068.0,0.001]
[1763455328734,0.4679,3068.6,3068.0,0.001]
[1763455329032,0.286,3068.5,3068.0,0.001]
[1763455329370,1.177,3068.4,3068.0,0.001]
[1763455329931,1.6449,3068.4,3068.0,0.001]
[1763455330581,0.4679,3068.3,3068.0,0.001]
[1763455332066,0.286,3068.5,3068.0,0.001]
[1763455332282,0.4679,3068.4,3068.0,0.001]
[1763455332435,0.4537,3068.1,3068.0,0.001]
[1763455332958,0.9216,3068.1,3068.0,0.001]
[1763455334673,0.286,3068.5,3068.0,0.001]
[1763455334971,0.9216,3068.1,3068.0,0.001]
[1763455336568,0.4537,3068.1,3068.0,0.001]
[1763455336767,0.7397,3068.1,3068.0,0.001]
[1763455337159,1.2076,3068.1,3068.0,0.001]
[1763455339277,4.46859264,3068.1,3068.0,0.001]
[1763455339479,1.82859264,3068.1,3068.0,0.001]
[1763455339859,2.11459264,3068.1,3068.0,0.001]
[1763455340270,2.52009664,3068.1,3068.0,0.001]
[1763455341953,3.6908118,3068.1,3068.0,0.001]
[1763455342670,3.69057028,3068.1,3068.0,0.001]
[1763455343182,1.82859264,3068.1,3068.0,0.001]
[1763455343383,0.4537,3068.1,3068.0,0.001]
[1763455343575,0.286,3068.1,3068.0,0.001]
[1763455343895,1.2403,3068.1,3068.0,0.001]
[1763455345974,1.645804,3068.1,3068.0,0.001]
[1763455347905,0.9543,3068.1,3068.0,0.001]
[1763455348280,1.2403,3068.1,3068.0,0.001]
[1763455348614,0.4845,3068.1,3068.0,0.001]
[1763455348915,0.286,3068.1,3068.0,0.001]
[1763455349078,2.64,3068.1,3068.0,0.001]
[1763455349503,4.50129264,3068.1,3068.0,0.001]
[1763455349911,2.14729264,3068.1,3068.0,0.001]
[1763455350627,2.55279664,3068.1,3068.0,0.001]
[1763455350784,2.26679664,3068.1,3068.0,0.001]
[1763455351193,2.55279664,3068.1,3068.0,0.001]
[1763455351524,1.39149264,3068.1,3068.0,0.001]
[1763455351733,2.14729264,3068.1,3068.0,0.001]
[1763455352147,1.86129264,3068.1,3068.0,0.001]
[1763455352300,1.2403,3068.1,3068.0,0.001]
[1763455352636,0.7705,3068.1,3068.0,0.001]
[1763455352812,1.2403,3068.1,3068.0,0.001]
[1763455354240,0.4845,3068.1,3068.0,0.001]
[1763455354549,0.4698,3068.5,3068.0,0.001]
[1763455354698,0.286,3068.4,3068.0,0.001]
[1763455355148,0.4845,3068.1,3068.0,0.001]
[1763455356422,0.946,3068.1,3068.0,0.001]
[1763455356624,0.946,3068.1,3067.7,0.001]
[1763455356625,0.405504,3067.9,3067.7,0.001]
[1763455356835,11.27004772,3067.8,3067.7,0.001]
[1763455357138,11.73154772,3067.8,3067.7,0.001]
[1763455357438,10.55788244,3067.8,3067.7,0.001]
[1763455358205,2.03739264,3067.8,3067.7,0.001]
[1763455358438,2.32339264,3067.8,3067.7,0.001]
[1763455358608,2.72889664,3067.8,3067.7,0.001]
[1763455358929,3.90256192,3067.8,3067.7,0.001]
[1763455359130,6.84339456,3067.8,3067.7,0.001]
[1763455359336,4.48939456,3067.8,3067.7,0.001]
[1763455359556,0.405504,3067.4,3067.0,0.001]
[1763455359770,11.69941506,3067.4,3067.0,0.001]
[1763455360070,12.16091506,3067.4,3067.0,0.001]
[1763455361523,10.40058644,3067.4,3067.0,0.001]
[1763455362174,12.1599238,3067.4,3067.0,0.001]
[1763455366260,10.40058644,3067.4,3067.0,0.001]
[1763455367470,11.28673951,3067.4,3067.0,0.001]
[1763455367655,1.17215307,3067.7,3067.2,0.1905]
[1763455367856,0.4615,3067.7,3067.0,0.001]
[1763455368087,0.7475,3067.6,3067.0,0.001]
[1763455368297,0.4785,3067.4,3067.0,0.001]
[1763455368449,0.405504,3067.4,3067.0,0.001]
[1763455368651,0.90699264,3067.4,3067.0,0.001]
[1763455368879,0.90699264,3067.4,3067.1,0.1905]
[1763455369079,1.464,3067.4,3067.1,0.1905]
[1763455369383,1.67149264,3067.4,3067.0,0.001]
[1763455369685,2.13299264,3067.4,3067.0,0.001]
[1763455369887,1.67149264,3067.4,3067.0,0.001]
[1763455370092,2.13299264,3067.4,3067.0,0.001]
[1763455370580,1.67149264,3067.4,3067.0,0.001]
[1763455370781,1.19299264,3067.4,3067.0,0.001]
[1763455370953,0.286,3067.4,3067.1,0.1905]
[1763455371544,0.7645,3067.4,3067.0,0.001]
[1763455371749,0.286,3067.4,3067.0,0.001]
[1763455371987,0.286,3067.4,3067.1,0.1905]
[1763455372178,0.286,3067.4,3067.0,0.001]
[1763455372355,0.286,3067.4,3067.1,0.1905]
[1763455372551,0.286,3067.4,3067.3,0.4589]
[1763455372750,0.286,3067.4,3067.3,0.001]
[1763455373284,0.286,3067.4,3067.3,0.4589]
[1763455373579,0.286,3067.4,3067.3,0.9508]
[1763455374185,0.286,3067.4,3067.3,0.4589]
[1763455374357,0.286,3067.4,3067.3,0.001]
[1763455375092,0.288,3067.4,3067.3,0.001]
[1763455376592,0.288,3067.4,3067.3,0.4589]
[1763455376906,0.288,3067.4,3067.3,0.001]
[1763455377373,0.288,3067.4,3067.3,0.4589]
[1763455378565,0.002,3067.4,3067.3,0.9508]
[1763455378757,0.288,3067.4,3067.3,0.9508]
[1763455379069,2.642,3067.4,3067.3,0.9508]
[1763455379283,3.54899264,3067.4,3067.3,0.9508]
[1763455379466,2.642,3067.4,3067.3,0.9508]
[1763455380110,1.465,3067.4,3067.3,0.9508]
[1763455380402,0.288,3067.4,3067.3,0.9508]
[1763455380761,0.002,3067.8,3067.3,0.98340196]
[1763455380963,0.002,3067.8,3067.7,0.4579]
[1763455381163,0.002,3068.1,3067.7,0.98239771]
[1763455381398,0.002,3068.1,3068.0,0.4579]
[1763455381895,0.002,3068.1,3068.0,0.9498]
[1763455382406,0.288,3068.1,3067.6,0.4919]
[1763455382920,0.288,3068.1,3068.0,0.4579]
[1763455383420,0.288,3068.1,3068.0,0.9498]
[1763455383723,0.288,3068.1,3068.0,0.4579]
[1763455384096,0.288,3068.1,3067.7,0.4919]
[1763455384277,0.288,3068.1,3067.4,0.4919]
[1763455385274,0.288,3068.1,3067.3,0.001]
[1763455385275,1.19499264,3068.1,3067.3,0.001]
[1763455385475,0.4615,3068.0,3067.3,0.001]
[1763455386288,1.19499264,3068.1,3067.3,0.001]
[1763455386485,0.286,3068.0,3067.3,0.001]
[1763455386827,0.7617,3068.0,3067.3,0.001]
[1763455387402,0.002,3068.1,3067.4,0.4767]
[1763455387601,0.286,3067.9,3067.4,0.4767]
[1763455388130,0.286,3067.9,3067.8,0.4996]
[1763455388482,0.002,3068.1,3067.8,0.9763]
[1763455388831,0.286,3067.9,3067.8,0.4767]
[1763455389210,2.64,3067.9,3067.8,0.9763]
[1763455389582,2.64,3067.9,3067.8,0.4996]
[1763455389878,0.286,3067.9,3067.3,0.001]
[1763455390080,1.19299264,3067.9,3067.3,0.001]
[1763455390280,0.002,3068.1,3067.8,0.4996]
[1763455390487,0.286,3068.0,3067.8,0.4996]
[1763455390724,0.286,3068.0,3067.4,0.4767]
[1763455391893,0.286,3068.0,3067.3,0.001]
[1763455392395,0.288,3068.0,3067.3,0.001]
[1763455392992,0.7637,3068.0,3067.3,0.001]
[1763455393841,0.288,3068.0,3067.3,0.001]
[1763455394152,0.286,3067.9,3067.3,0.001]
[1763455394362,0.286,3067.9,3067.4,0.4767]
[1763455394645,0.286,3067.9,3067.3,0.001]
[1763455396126,0.286,3067.9,3067.3,0.4777]
[1763455399247,2.354,3067.8,3067.3,0.4777]
[1763455399739,3.26099264,3067.8,3067.3,0.001]
[1763455399943,2.08399264,3067.8,3067.3,0.001]
[1763455400150,2.53429264,3067.8,3067.3,0.001]
[1763455400360,2.08399264,3067.8,3067.3,0.001]
[1763455400931,2.08399264,3067.8,3067.3,0.4766]
[1763455401454,0.002,3068.0,3067.3,0.4766]
[1763455401622,0.286,3067.7,3067.3,0.001]
[1763455402261,0.473,3067.4,3067.3,0.001]
[1763455404858,1.83029264,3067.4,3067.3,0.001]
[1763455405933,2.23579664,3067.4,3067.3,0.001]
[1763455406133,3.00244571,3067.4,3067.3,0.001]
[1763455406340,1.83029264,3067.4,3067.3,0.001]
[1763455406651,1.37999264,3067.4,3067.3,0.001]
[1763455407060,1.66599264,3067.4,3067.3,0.001]
[1763455407974,1.19299264,3067.4,3067.3,0.001]
[1763455408152,2.11629264,3067.4,3067.3,0.001]
[1763455409174,4.47029264,3067.4,3067.3,0.001]
[1763455409364,3.54699264,3067.4,3067.3,0.001]
[1763455410674,4.01999264,3067.4,3067.3,0.001]
[1763455411066,1.936,3067.4,3067.3,0.001]
[1763455411671,2.3863,3067.4,3067.3,0.001]
[1763455411973,3.29329264,3067.4,3067.3,0.001]
[1763455413277,2.11629264,3067.4,3067.3,0.001]
[1763455416351,1.66599264,3067.4,3067.3,0.001]
[1763455416547,3.02497764,3067.4,3067.3,0.001]
[1763455416750,0.92565307,3067.7,3067.3,0.6689]
[1763455416952,0.002,3068.2,3067.8,0.4774]
[1763455417149,0.002,3068.2,3067.9,0.4774]
[1763455418053,0.288,3068.0,3067.9,0.4774]
[1763455418281,0.288,3068.0,3067.5,0.4834]
[1763455418501,0.288,3068.0,3067.3,0.1915]
[1763455419109,0.288,3068.0,3067.9,0.4774]
[1763455419272,1.465,3068.0,3067.9,0.4774]
[1763455419475,0.288,3068.0,3067.9,0.4774]
[1763455420005,0.288,3068.0,3067.3,0.1915]
[1763455421504,0.7663,3068.0,3067.3,0.001]
[1763455422493,1.79079664,3067.9,3067.3,0.001]
[1763455424002,0.288,3068.0,3067.3,0.001]
[1763455425072,0.7663,3068.0,3067.3,0.001]
[1763455425608,0.4656,3067.4,3067.3,0.001]
[1763455425780,0.7516,3067.4,3067.3,0.001]
[1763455426792,0.286,3067.4,3067.3,0.001]
[1763455427198,0.90699264,3067.7,3067.3,0.4784]
[1763455427395,0.286,3067.6,3067.3,0.9618]
[1763455427602,0.286,3067.6,3067.3,0.4844]
[1763455427905,0.286,3067.6,3067.5,0.4774]
[1763455428308,0.286,3067.6,3067.5,0.9608]
[1763455429109,3.54699264,3067.6,3067.5,0.4774]
[1763455430309,2.36999264,3067.6,3067.5,0.4774]
[1763455430610,1.19299264,3067.6,3067.5,0.9608]
[1763455433719,0.286,3067.6,3067.5,0.4774]
[1763455433893,0.286,3067.6,3067.5,0.9608]
[1763455436628,0.286,3067.6,3067.5,0.4774]
[1763455437626,0.286,3067.6,3067.5,0.9608]
[1763455439334,0.286,3067.6,3067.5,0.4774]
[1763455439335,2.36999264,3067.6,3067.5,0.4774]
[1763455439543,2.36999264,3067.6,3067.5,0.9608]
[1763455439738,0.286,3067.6,3067.5,0.9608]
[1763455442230,0.7516,3067.6,3067.3,0.001]
[1763455442537,1.65859264,3067.6,3067.3,0.001]
[1763455442743,0.286,3067.6,3067.3,0.001]
[1763455442948,0.286,3067.6,3067.5,0.4774]
[1763455443509,0.286,3067.6,3067.5,0.9608]
[1763455444312,0.285,3067.6,3067.5,0.4774]
[1763455444511,0.285,3067.6,3067.5,0.9608]
[1763455445758,0.285,3067.6,3067.3,0.001]
[1763455445976,0.3501,3067.4,3067.3,0.001]
[1763455446266,1.25709264,3067.4,3067.3,0.001]
[1763455446419,1.73489264,3067.4,3067.3,0.001]
[1763455446817,0.3501,3067.4,3067.3,0.001]
[1763455447052,0.8279,3067.4,3067.3,0.001]
[1763455447822,10.32537887,3067.9,3067.3,0.4916]
[1763455447823,0.002,3067.9,3067.3,0.4916]
[1763455448023,0.285,3067.8,3067.3,0.4916]
[1763455448223,0.285,3067.8,3067.3,0.001]
[1763455448424,0.7628,3067.8,3067.3,0.001]
[1763455448934,0.285,3067.8,3067.3,0.001]
[1763455449246,3.26099264,3067.7,3067.3,0.001]
[1763455449447,3.26099264,3067.7,3067.3,0.4818]
[1763455449623,3.26099264,3067.7,3067.6,0.4906]
[1763455449822,2.08399264,3067.7,3067.6,0.4906]
[1763455450162,1.177,3067.7,3067.6,0.4906]
[1763455450455,0.285,3067.8,3067.6,0.9714]
[1763455450657,0.285,3067.8,3067.7,0.4906]
[1763455451222,0.285,3067.8,3067.7,0.9714]
[1763455453847,0.285,3067.8,3067.3,0.001]
[1763455454048,0.285,3067.8,3067.7,0.4906]
[1763455454378,0.285,3067.8,3067.7,0.9714]
[1763455455234,0.7391,3067.8,3067.3,0.001]
[1763455455430,0.285,3067.8,3067.7,0.4906]
[1763455456935,0.285,3067.8,3067.4,0.4808]
[1763455457197,0.285,3067.8,3067.3,0.001]
[1763455457350,0.285,3067.8,3067.4,0.4808]
[1763455458142,0.285,3067.8,3067.7,0.4906]
[1763455458870,0.285,3067.8,3067.7,0.9714]
[1763455459071,1.462,3067.8,3067.7,0.9714]
[1763455459272,2.639,3067.8,3067.7,0.9714]
[1763455459640,2.639,3067.8,3067.7,0.4906]
[1763455459840,2.639,3067.8,3067.7,0.977]
[1763455461792,0.002,3067.9,3067.7,0.977]
[1763455462100,0.002,3067.9,3067.8,1.42380064]
[1763455462254,1.464,3067.9,3067.8,1.65687997]
[1763455462454,1.464,3067.9,3067.8,1.62428333]
[1763455463003,1.464,3067.9,3067.8,1.21877933]
[1763455463151,1.464,3067.9,3067.8,0.9857]
[1763455465793,1.464,3067.9,3067.4,0.03260089]
[1763455465960,1.464,3067.9,3067.3,0.001]
[1763455466155,1.464,3067.9,3067.3,0.4874]
[1763455467353,1.464,3067.9,3067.8,0.4993]
[1763455467759,1.464,3067.9,3067.8,0.9857]
[1763455468060,0.287,3067.9,3067.8,0.4993]
[1763455468988,0.287,3067.9,3067.8,0.9857]
[1763455469171,2.641,3067.9,3067.8,0.4993]
[1763455469374,2.641,3067.9,3067.8,0.9857]
[1763455471059,2.641,3067.9,3067.8,1.391204]
[1763455471060,1.464,3067.9,3067.8,1.391204]
[1763455471256,1.179,3067.9,3067.8,1.391204]
[1763455471460,1.464,3067.9,3067.8,1.391204]
[1763455473485,1.464,3067.9,3067.8,0.9857]
[1763455473886,0.002,3067.9,3067.8,1.391204]
[1763455474075,1.464,3067.9,3067.8,1.391204]
[1763455474576,1.464,3067.9,3067.8,1.8748244]
[1763455474866,1.464,3067.9,3067.8,1.391204]
[1763455478187,0.002,3068.0,3067.9,4.75749664]
[1763455478519,1.464,3068.0,3067.9,5.74459664]
[1763455478889,1.464,3068.0,3067.9,2.29959664]
[1763455479204,1.464,3068.0,3067.9,3.43978767]
[1763455479408,0.002,3068.3,3068.0,0.4962]
[1763455479600,4.0787108,3071.7,3068.7,0.405504]
[1763455479795,0.1848,3071.8,3068.6,0.4962]
[1763455479796,1.17205548,3071.3,3070.4,0.901704]
[1763455480000,1.462,3071.2,3070.6,1.31249664]
[1763455480199,1.462,3071.2,3070.8,1.31249664]
[1763455480200,0.285,3071.1,3070.8,1.31249664]
[1763455480493,0.285,3071.1,3071.0,0.405504]
[1763455480707,0.285,3071.1,3070.7,2.05601074]
[1763455481022,0.285,3071.1,3070.7,0.979715]
[1763455482201,0.285,3071.1,3070.8,0.4909]
[1763455482387,0.285,3071.1,3070.7,0.979715]
[1763455482803,0.285,3071.1,3070.7,1.470615]